fUSD/lending_fUSD_20260528
["ID","MTS","AMOUNT","RATE_DAILY","PERIOD"]
[423199152,1779919860000,-7846.37,0.00039669,120]
[423199166,1779919860000,-7846.37,0.00039669,120]
[423199150,1779919860000,-7846.37,0.00039669,120]
[423199129,1779919860000,-1845.19,0.00039669,120]
[423199149,1779919860000,-7846.37,0.00039669,120]
[423199179,1779919860000,-3921.12,0.00039669,120]
[423199123,1779919860000,-1845.19,0.00039669,120]
[423199122,1779919860000,-1845.19,0.00039669,120]
[423199131,1779919860000,-1845.19,0.00039669,120]
[423199135,1779919860000,-1845.19,0.00039669,120]
[423199132,1779919860000,-1845.19,0.00039669,120]
[423199136,1779919860000,-1845.41455463,0.00039669,120]
[423199134,1779919860000,-1845.19,0.00039669,120]
[423199133,1779919860000,-1845.19,0.00039669,120]
[423199124,1779919860000,-1845.19,0.00039669,120]
[423199127,1779919860000,-1845.19,0.00039669,120]
[423199128,1779919860000,-1845.19,0.00039669,120]
[423199125,1779919860000,-1845.19,0.00039669,120]
[423199126,1779919860000,-1845.19,0.00039669,120]
[423199130,1779919860000,-1845.19,0.00039669,120]
[423199142,1779919860000,-373.45,0.00039669,120]
[423199141,1779919860000,-500.0,0.00039669,120]
[423199138,1779919860000,-500.0,0.00039669,120]
[423199137,1779919860000,-1000.0,0.00039669,30]
[423199139,1779919860000,-500.0,0.00039669,120]
[423199140,1779919860000,-1892.77,0.00039669,120]
[423199146,1779919860000,-7846.37,0.00039669,120]
[423199144,1779919860000,-53361.37584438,0.00039669,120]
[423199143,1779919860000,-517.42506947,0.00039669,120]
[423199145,1779919860000,-1014671.5452358,0.00039669,30]
[423199147,1779919860000,-7846.37,0.00039669,120]
[423199148,1779919860000,-7846.37,0.00039669,120]
[423199151,1779919860000,-7846.37,0.00039669,120]
[423199185,1779919860000,-3921.12,0.00039669,120]
[423199180,1779919860000,-3921.12,0.00039669,120]
[423199184,1779919860000,-3921.12,0.00039669,120]
[423199217,1779919860000,-160.0,0.00039669,2]
[423199215,1779919860000,-160.0,0.00039669,2]
[423199214,1779919860000,-160.0,0.00039669,2]
[423199216,1779919860000,-160.0,0.00039669,2]
[423199218,1779919860000,-160.0,0.00039669,2]
[423199219,1779919860000,-160.0,0.00039669,2]
[423199220,1779919860000,-160.0,0.00039669,2]
[423199221,1779919860000,-160.0,0.00039669,2]
[423199222,1779919860000,-160.0,0.00039669,2]
[423199226,1779919860000,-320.0,0.00039669,2]
[423199228,1779919860000,-1628.46492282,0.00039669,90]
[423199229,1779919860000,-320.0,0.00039669,2]
[423199213,1779919860000,-160.0,0.00039669,2]
[423199223,1779919860000,-160.0,0.00039669,2]
[423199225,1779919860000,-160.463535,0.00039669,2]
[423199227,1779919860000,-320.0,0.00039669,2]
[423199230,1779919860000,-500.0,0.00039669,30]
[423199232,1779919860000,-596.30771932,0.00039669,30]
[423199240,1779919860000,-160.0,0.00039669,2]
[423199238,1779919860000,-160.0,0.00039669,2]
[423199239,1779919860000,-160.0,0.00039669,2]
[423199234,1779919860000,-1584.17,0.00039669,7]
[423199233,1779919860000,-160.0,0.00039669,2]
[423199236,1779919860000,-160.0,0.00039669,2]
[423199235,1779919860000,-160.0,0.00039669,2]
[423199237,1779919860000,-160.0,0.00039669,2]
[423199224,1779919860000,-479.536465,0.00039669,2]
[423199211,1779919860000,-160.0,0.00039669,2]
[423199231,1779919860000,-500.0,0.00039669,30]
[423199207,1779919860000,-2361.74368796,0.00039669,120]
[423199212,1779919860000,-160.0,0.00039669,2]
[423199186,1779919860000,-3921.12,0.00039669,120]
[423199189,1779919860000,-3921.12,0.00039669,120]
[423199191,1779919860000,-3921.12,0.00039669,120]
[423199190,1779919860000,-3921.12,0.00039669,120]
[423199187,1779919860000,-3921.12,0.00039669,120]
[423199188,1779919860000,-3921.12,0.00039669,120]
[423199183,1779919860000,-3921.12,0.00039669,120]
[423199182,1779919860000,-3921.12,0.00039669,120]
[423199193,1779919860000,-3921.33,0.00039669,120]
[423199195,1779919860000,-500.0,0.00039669,120]
[423199194,1779919860000,-500.0,0.00039669,120]
[423199192,1779919860000,-3921.12,0.00039669,120]
[423199181,1779919860000,-3921.12,0.00039669,120]
[423199202,1779919860000,-150.0,0.00039669,2]
[423199210,1779919860000,-160.0,0.00039669,2]
[423199196,1779919860000,-500.0,0.00039669,120]
[423199208,1779919860000,-14042.14473329,0.00039669,120]
[423199209,1779919860000,-521.0,0.00039669,120]
[423199205,1779919860000,-4833122.36803075,0.00039669,61]
[423199204,1779919860000,-501.54002188,0.00039669,2]
[423199206,1779919860000,-203.81772309,0.00039669,30]
[423199198,1779919860000,-500.26765073,0.00039669,120]
[423199203,1779919860000,-500.0,0.00039669,2]
[423199199,1779919860000,-487.0,0.00039669,120]
[423199201,1779919860000,-5000.0,0.00039669,30]
[423199197,1779919860000,-500.0,0.00039669,120]
[423199200,1779919860000,-720.56,0.00039669,120]
[423199264,1779919861000,-212.04,0.00039669,2]
[423199263,1779919861000,-212.04,0.00039669,2]
[423199269,1779919861000,-500.0,0.00039669,2]
[423199265,1779919861000,-212.04,0.00039669,2]
[423199270,1779919861000,-760.19220393,0.00039669,120]
[423199266,1779919861000,-200.0,0.00039669,10]
[423199268,1779919861000,-1587.74,0.00039669,7]
[423199267,1779919861000,-300.0,0.00039669,10]
[423199272,1779919861000,-760.19220393,0.00039669,120]
[423199275,1779919861000,-760.19220393,0.00039669,120]
[423199274,1779919861000,-760.19220393,0.00039669,120]
[423199273,1779919861000,-760.19220393,0.00039669,120]
[423199278,1779919861000,-760.19220393,0.00039669,120]
[423199277,1779919861000,-760.19220393,0.00039669,120]
[423199276,1779919861000,-760.19220393,0.00039669,120]
[423199279,1779919861000,-760.19220393,0.00039669,120]
[423199259,1779919861000,-212.04,0.00039669,2]
[423199280,1779919861000,-760.19220393,0.00039669,120]
[423199271,1779919861000,-760.19220393,0.00039669,120]
[423199260,1779919861000,-212.04,0.00039669,2]
[423199248,1779919861000,-160.0,0.00039669,2]
[423199261,1779919861000,-212.04,0.00039669,2]
[423199292,1779919861000,-760.19220393,0.00039669,120]
[423199241,1779919861000,-160.0,0.00039669,2]
[423199244,1779919861000,-160.0,0.00039669,2]
[423199242,1779919861000,-160.0,0.00039669,2]
[423199243,1779919861000,-160.0,0.00039669,2]
[423199246,1779919861000,-160.0,0.00039669,2]
[423199245,1779919861000,-160.0,0.00039669,2]
[423199247,1779919861000,-160.0,0.00039669,2]
[423199262,1779919861000,-212.04,0.00039669,2]
[423199251,1779919861000,-160.0,0.00039669,2]
[423199253,1779919861000,-160.0,0.00039669,2]
[423199250,1779919861000,-160.0,0.00039669,2]
[423199252,1779919861000,-160.0,0.00039669,2]
[423199256,1779919861000,-160.0,0.00039669,2]
[423199254,1779919861000,-160.0,0.00039669,2]
[423199255,1779919861000,-160.0,0.00039669,2]
[423199257,1779919861000,-295.0,0.00039669,2]
[423199258,1779919861000,-212.08,0.00039669,2]
[423199249,1779919861000,-160.0,0.00039669,2]
[423199281,1779919861000,-760.19220393,0.00039669,120]
[423199290,1779919861000,-760.19220393,0.00039669,120]
[423199283,1779919861000,-760.19220393,0.00039669,120]
[423199317,1779919861000,-899.0,0.00039726,120]
[423199310,1779919861000,-899.0,0.00039726,120]
[423199311,1779919861000,-899.0,0.00039726,120]
[423199309,1779919861000,-899.0,0.00039726,120]
[423199313,1779919861000,-899.0,0.00039726,120]
[423199319,1779919861000,-899.0,0.00039726,120]
[423199312,1779919861000,-899.0,0.00039726,120]
[423199308,1779919861000,-899.0,0.00039726,120]
[423199314,1779919861000,-899.0,0.00039726,120]
[423199315,1779919861000,-899.0,0.00039726,120]
[423199316,1779919861000,-899.0,0.00039726,120]
[423199321,1779919861000,-899.0,0.00039726,120]
[423199324,1779919861000,-899.0,0.00039726,120]
[423199323,1779919861000,-899.0,0.00039726,120]
[423199327,1779919861000,-899.0,0.00039726,120]
[423199322,1779919861000,-899.0,0.00039726,120]
[423199325,1779919861000,-899.0,0.00039726,120]
[423199326,1779919861000,-899.0,0.00039726,120]
[423199291,1779919861000,-760.19220393,0.00039669,120]
[423199318,1779919861000,-899.0,0.00039726,120]
[423199306,1779919861000,-1377.42282658,0.00039724,30]
[423199320,1779919861000,-899.0,0.00039726,120]
[423199299,1779919861000,-151.0,0.00039697,14]
[423199284,1779919861000,-760.19220393,0.00039669,120]
[423199307,1779919861000,-165.82126579,0.00039726,120]
[423199288,1779919861000,-760.19220393,0.00039669,120]
[423199287,1779919861000,-760.19220393,0.00039669,120]
[423199285,1779919861000,-760.19220393,0.00039669,120]
[423199289,1779919861000,-760.19220393,0.00039669,120]
[423199282,1779919861000,-760.19220393,0.00039669,120]
[423199293,1779919861000,-760.19220393,0.00039669,120]
[423199296,1779919861000,-760.19220393,0.00039669,120]
[423199286,1779919861000,-760.19220393,0.00039669,120]
[423199295,1779919861000,-760.19220393,0.00039669,120]
[423199294,1779919861000,-760.19220393,0.00039669,120]
[423199303,1779919861000,-335.86,0.0003972,2]
[423199301,1779919861000,-5536.0,0.000397,117]
[423199298,1779919861000,-760.19220393,0.00039669,120]
[423199304,1779919861000,-181.31414834,0.00039723,14]
[423199305,1779919861000,-2005.9555727,0.00039724,30]
[423199300,1779919861000,-200.4,0.000397,16]
[423199297,1779919861000,-760.19220393,0.00039669,120]
[423199302,1779919861000,-153.52,0.00039704,120]
[423199370,1779919862000,-300.0,0.00039726,120]
[423199369,1779919862000,-300.0,0.00039726,120]
[423199365,1779919862000,-300.0,0.00039726,120]
[423199366,1779919862000,-300.0,0.00039726,120]
[423199371,1779919862000,-300.0,0.00039726,120]
[423199363,1779919862000,-300.0,0.00039726,120]
[423199362,1779919862000,-300.0,0.00039726,120]
[423199367,1779919862000,-300.0,0.00039726,120]
[423199372,1779919862000,-300.0,0.00039726,120]
[423199364,1779919862000,-300.0,0.00039726,120]
[423199373,1779919862000,-300.0,0.00039726,120]
[423199361,1779919862000,-300.0,0.00039726,120]
[423199368,1779919862000,-300.0,0.00039726,120]
[423199375,1779919862000,-300.0,0.00039726,120]
[423199374,1779919862000,-300.0,0.00039726,120]
[423199377,1779919862000,-300.0,0.00039726,120]
[423199382,1779919862000,-1619.16695213,0.00039743,120]
[423199383,1779919862000,-153.52,0.00039754,120]
[423199381,1779919862000,-152.0,0.00039743,4]
[423199378,1779919862000,-300.0,0.00039726,120]
[423199380,1779919862000,-300.0,0.00039726,120]
[423199376,1779919862000,-300.0,0.00039726,120]
[423199379,1779919862000,-300.0,0.00039726,120]
[423199385,1779919862000,-150.0,0.00039756,6]
[423199387,1779919862000,-1934.38338736,0.00039756,30]
[423199386,1779919862000,-5037.85548136,0.00039756,2]
[423199395,1779919862000,-151.0,0.000398,120]
[423199356,1779919862000,-300.0,0.00039726,120]
[423199384,1779919862000,-666.0,0.00039755,30]
[423199354,1779919862000,-300.0,0.00039726,120]
[423199336,1779919862000,-300.0,0.00039726,120]
[423199357,1779919862000,-300.0,0.00039726,120]
[423199392,1779919862000,-422.73,0.000398,120]
[423199331,1779919862000,-920.18353042,0.00039726,120]
[423199329,1779919862000,-899.0,0.00039726,120]
[423199328,1779919862000,-899.0,0.00039726,120]
[423199332,1779919862000,-300.0,0.00039726,120]
[423199330,1779919862000,-899.0,0.00039726,120]
[423199334,1779919862000,-300.0,0.00039726,120]
[423199344,1779919862000,-300.0,0.00039726,120]
[423199346,1779919862000,-300.0,0.00039726,120]
[423199337,1779919862000,-300.0,0.00039726,120]
[423199333,1779919862000,-300.0,0.00039726,120]
[423199345,1779919862000,-300.0,0.00039726,120]
[423199335,1779919862000,-300.0,0.00039726,120]
[423199343,1779919862000,-300.0,0.00039726,120]
[423199339,1779919862000,-300.0,0.00039726,120]
[423199341,1779919862000,-300.0,0.00039726,120]
[423199338,1779919862000,-300.0,0.00039726,120]
[423199342,1779919862000,-300.0,0.00039726,120]
[423199340,1779919862000,-300.0,0.00039726,120]
[423199347,1779919862000,-300.0,0.00039726,120]
[423199355,1779919862000,-300.0,0.00039726,120]
[423199349,1779919862000,-300.0,0.00039726,120]
[423199359,1779919862000,-300.0,0.00039726,120]
[423199348,1779919862000,-300.0,0.00039726,120]
[423199353,1779919862000,-300.0,0.00039726,120]
[423199350,1779919862000,-300.0,0.00039726,120]
[423199351,1779919862000,-300.0,0.00039726,120]
[423199352,1779919862000,-300.0,0.00039726,120]
[423199358,1779919862000,-300.0,0.00039726,120]
[423199360,1779919862000,-300.0,0.00039726,120]
[423199390,1779919862000,-151.85,0.000398,120]
[423199408,1779919862000,-150.0,0.00039992,7]
[423199397,1779919862000,-153.52,0.00039804,120]
[423199426,1779919862000,-11219.65218108,0.0004,21]
[423199435,1779919862000,-600.0,0.0004,2]
[423199432,1779919862000,-796.25826863,0.0004,7]
[423199436,1779919862000,-31930.60348994,0.0004,7]
[423199431,1779919862000,-151.0,0.0004,7]
[423199425,1779919862000,-14195.8788994,0.0004,2]
[423199429,1779919862000,-12740.13229813,0.0004,7]
[423199433,1779919862000,-199.06456716,0.0004,7]
[423199434,1779919862000,-1000.0,0.0004,2]
[423199428,1779919862000,-30000.0,0.0004,10]
[423199430,1779919862000,-3185.03307453,0.0004,7]
[423199438,1779919862000,-1000.0,0.0004,2]
[423199437,1779919862000,-26038.13057262,0.0004,7]
[423199448,1779919862000,-1576.62943726,0.0004,7]
[423199439,1779919862000,-6559.29878494,0.0004,7]
[423199440,1779919862000,-17938.53937502,0.0004,7]
[423199445,1779919862000,-250.0,0.0004,7]
[423199443,1779919862000,-8408.69033204,0.0004,7]
[423199441,1779919862000,-13453.90453126,0.0004,7]
[423199444,1779919862000,-250.0,0.0004,7]
[423199442,1779919862000,-6726.95226563,0.0004,7]
[423199447,1779919862000,-4204.34516602,0.0004,7]
[423199446,1779919862000,-2102.17258301,0.0004,7]
[423199450,1779919862000,-250.0,0.0004,2]
[423199449,1779919862000,-3153.25887451,0.0004,7]
[423199451,1779919862000,-1800.02263025,0.0004,2]
[423199452,1779919862000,-396.57141907,0.0004,2]
[423199453,1779919862000,-1586.61985941,0.0004,2]
[423199393,1779919862000,-230.01,0.000398,120]
[423199427,1779919862000,-158.0,0.0004,3]
[423199423,1779919862000,-175.33044285,0.0004,7]
[423199454,1779919862000,-1708.90686847,0.0004,2]
[423199417,1779919862000,-1798.80895522,0.00039999,30]
[423199419,1779919862000,-165.82126579,0.0004,120]
[423199399,1779919862000,-5000.0,0.00039838,2]
[423199391,1779919862000,-410.44,0.000398,120]
[423199394,1779919862000,-676.21,0.000398,120]
[423199396,1779919862000,-250.0,0.000398,30]
[423199388,1779919862000,-1328.27659266,0.00039756,30]
[423199389,1779919862000,-293.31,0.000398,12]
[423199400,1779919862000,-153.52,0.00039854,120]
[423199402,1779919862000,-1759.37,0.00039872,2]
[423199401,1779919862000,-150.0,0.00039863,30]
[423199403,1779919862000,-254.88572444,0.000399,2]
[423199409,1779919862000,-1170.18,0.00039996,120]
[423199412,1779919862000,-1865.36488656,0.00039998,30]
[423199455,1779919862000,-319.74445707,0.0004,2]
[423199398,1779919862000,-666.0,0.00039837,30]
[423199404,1779919862000,-355.0,0.00039902,14]
[423199418,1779919862000,-1235.18214925,0.00039999,30]
[423199421,1779919862000,-6649.80786409,0.0004,7]
[423199422,1779919862000,-25280.76458875,0.0004,7]
[423199420,1779919862000,-9759.96503186,0.0004,7]
[423199405,1779919862000,-153.52,0.00039904,120]
[423199416,1779919862000,-10000.0,0.00039999,7]
[423199424,1779919862000,-162.47095505,0.0004,2]
[423199413,1779919862000,-1280.88388877,0.00039998,30]
[423199414,1779919862000,-300.0,0.00039999,10]
[423199407,1779919862000,-1000.0,0.00039992,120]
[423199406,1779919862000,-153.52,0.00039954,120]
[423199410,1779919862000,-300.0,0.00039998,10]
[423199411,1779919862000,-666.0,0.00039998,30]
[423199415,1779919862000,-666.0,0.00039999,30]
[423199496,1779919863000,-23777.55,0.0004029,60]
[423199492,1779919863000,-165.82126579,0.00040274,120]
[423199494,1779919863000,-506.85,0.0004029,60]
[423199495,1779919863000,-911.75,0.0004029,60]
[423199493,1779919863000,-250.01,0.00040274,73]
[423199490,1779919863000,-158.83675798,0.00040231,2]
[423199498,1779919863000,-151.0,0.000403,120]
[423199491,1779919863000,-153.52,0.00040254,120]
[423199489,1779919863000,-153.52,0.00040204,120]
[423199499,1779919863000,-153.52,0.00040304,120]
[423199487,1779919863000,-5000.0,0.00040192,4]
[423199488,1779919863000,-155.0,0.000402,120]
[423199497,1779919863000,-1619.16695213,0.00040291,120]
[423199505,1779919863000,-159.0,0.00040374,120]
[423199501,1779919863000,-153.52,0.00040354,120]
[423199512,1779919863000,-155.0,0.00040374,120]
[423199508,1779919863000,-155.0,0.00040374,120]
[423199506,1779919863000,-152.0,0.00040374,120]
[423199500,1779919863000,-158.83675798,0.00040331,2]
[423199504,1779919863000,-168.0,0.00040374,120]
[423199510,1779919863000,-154.0,0.00040374,120]
[423199502,1779919863000,-500.0,0.00040369,120]
[423199503,1779919863000,-154.0,0.00040374,120]
[423199507,1779919863000,-165.0,0.00040374,120]
[423199509,1779919863000,-155.0,0.00040374,120]
[423199481,1779919863000,-153.52,0.00040104,120]
[423199514,1779919863000,-156.0,0.00040374,120]
[423199511,1779919863000,-151.0,0.00040374,120]
[423199482,1779919863000,-153.52,0.00040154,120]
[423199468,1779919863000,-151.0,0.0004,7]
[423199483,1779919863000,-150.0,0.00040185,120]
[423199524,1779919863000,-1619.16695213,0.00040565,120]
[423199460,1779919863000,-54591.0,0.0004,30]
[423199461,1779919863000,-253.336934,0.0004,30]
[423199457,1779919863000,-515.84485009,0.0004,2]
[423199456,1779919863000,-164.07104115,0.0004,2]
[423199459,1779919863000,-319.18,0.0004,120]
[423199458,1779919863000,-10670.2113073,0.0004,2]
[423199473,1779919863000,-152.978847,0.0004,30]
[423199474,1779919863000,-152.978847,0.0004,30]
[423199463,1779919863000,-253.336934,0.0004,30]
[423199464,1779919863000,-253.336934,0.0004,30]
[423199462,1779919863000,-253.336934,0.0004,30]
[423199465,1779919863000,-2000.0,0.0004,120]
[423199466,1779919863000,-151.0,0.0004,30]
[423199469,1779919863000,-151.0,0.0004,7]
[423199472,1779919863000,-152.978847,0.0004,30]
[423199471,1779919863000,-152.978847,0.0004,30]
[423199470,1779919863000,-151.0,0.0004,30]
[423199467,1779919863000,-151.0,0.0004,7]
[423199477,1779919863000,-153.52,0.00040004,120]
[423199480,1779919863000,-330.0,0.00040072,69]
[423199478,1779919863000,-1619.16695213,0.00040017,120]
[423199486,1779919863000,-8397.80448027,0.00040192,2]
[423199476,1779919863000,-1011.63274288,0.0004,120]
[423199475,1779919863000,-1000.0,0.0004,120]
[423199484,1779919863000,-2672.0,0.00040187,120]
[423199479,1779919863000,-153.52,0.00040054,120]
[423199485,1779919863000,-300.0,0.00040191,10]
[423199518,1779919863000,-150.0,0.0004041,30]
[423199533,1779919863000,-775.94000356,0.00040691,2]
[423199517,1779919863000,-153.52,0.00040404,120]
[423199553,1779919863000,-153.52,0.00040954,120]
[423199551,1779919863000,-153.52,0.00040904,120]
[423199552,1779919863000,-531.2385398,0.00040924,2]
[423199549,1779919863000,-227.0,0.00040849,2]
[423199557,1779919863000,-331.33028699,0.00041,30]
[423199554,1779919863000,-150.0,0.00040958,30]
[423199559,1779919863000,-153.52,0.00041004,120]
[423199556,1779919863000,-250.0,0.00040986,87]
[423199560,1779919863000,-150.0,0.00041032,120]
[423199561,1779919863000,-1455.2,0.00041041,120]
[423199555,1779919863000,-775.94000356,0.00040966,2]
[423199558,1779919863000,-1237.0,0.00041,30]
[423199562,1779919863000,-153.52,0.00041054,120]
[423199550,1779919863000,-153.52,0.00040854,120]
[423199567,1779919863000,-7301.98943546,0.00041095,5]
[423199570,1779919863000,-500.0,0.00041095,120]
[423199513,1779919863000,-163.0,0.00040374,120]
[423199569,1779919863000,-500.0,0.00041095,120]
[423199566,1779919863000,-1000.0,0.00041092,120]
[423199565,1779919863000,-1644.8275,0.00041086,120]
[423199568,1779919863000,-500.0,0.00041095,120]
[423199571,1779919863000,-500.0,0.00041095,120]
[423199573,1779919863000,-169.16446278,0.00041096,7]
[423199572,1779919863000,-213.15449816,0.00041095,120]
[423199574,1779919863000,-338.32892556,0.00041096,7]
[423199575,1779919863000,-1000.0,0.00041096,60]
[423199577,1779919863000,-1000.0,0.00041096,60]
[423199576,1779919863000,-1000.0,0.00041096,60]
[423199564,1779919863000,-1644.8275,0.00041086,120]
[423199546,1779919863000,-250.0,0.00040828,84]
[423199563,1779919863000,-1400.0,0.00041082,60]
[423199544,1779919863000,-153.52,0.00040804,120]
[423199516,1779919863000,-643.78,0.000404,30]
[423199541,1779919863000,-2210.922,0.000408,60]
[423199519,1779919863000,-153.52,0.00040454,120]
[423199520,1779919863000,-250.0,0.00040473,76]
[423199515,1779919863000,-1103.62,0.000404,30]
[423199525,1779919863000,-153.52,0.00040604,120]
[423199523,1779919863000,-153.52,0.00040554,120]
[423199522,1779919863000,-165.82126579,0.00040548,120]
[423199529,1779919863000,-150.0,0.0004066,2]
[423199531,1779919863000,-150.0,0.00040669,2]
[423199532,1779919863000,-600.0,0.00040671,96]
[423199527,1779919863000,-250.0,0.00040657,80]
[423199528,1779919863000,-999.0,0.00040658,120]
[423199521,1779919863000,-153.52,0.00040504,120]
[423199526,1779919863000,-153.52,0.00040654,120]
[423199540,1779919863000,-1589.0,0.00040789,11]
[423199534,1779919863000,-151.0,0.000407,120]
[423199538,1779919863000,-181.4,0.0004077,120]
[423199542,1779919863000,-2210.922,0.000408,60]
[423199545,1779919863000,-165.82126579,0.00040822,120]
[423199547,1779919863000,-1619.16695213,0.00040839,120]
[423199548,1779919863000,-1563.0,0.00040845,2]
[423199543,1779919863000,-2210.92,0.000408,60]
[423199530,1779919863000,-250.0,0.00040669,2]
[423199537,1779919863000,-2380.8459578,0.00040755,2]
[423199535,1779919863000,-153.52,0.00040704,120]
[423199536,1779919863000,-153.52,0.00040754,120]
[423199539,1779919863000,-2317.0,0.00040789,11]
[423199600,1779919864000,-547.84187826,0.00041113,30]
[423199598,1779919864000,-1491.70621306,0.00041113,30]
[423199609,1779919864000,-155.0,0.000412,120]
[423199596,1779919864000,-1619.16695213,0.00041113,120]
[423199603,1779919864000,-220.37150274,0.0004115,120]
[423199608,1779919864000,-1191.11104074,0.00041199,30]
[423199607,1779919864000,-1734.62772924,0.00041199,30]
[423199610,1779919864000,-151.0,0.000412,120]
[423199601,1779919864000,-250.0,0.00041132,90]
[423199605,1779919864000,-153.52,0.00041154,120]
[423199602,1779919864000,-916.73154832,0.0004115,120]
[423199606,1779919864000,-11120.73340034,0.00041158,3]
[423199612,1779919864000,-153.52,0.00041204,120]
[423199611,1779919864000,-54591.0,0.000412,30]
[423199597,1779919864000,-150.0,0.00041113,30]
[423199622,1779919864000,-154.0,0.00041374,120]
[423199604,1779919864000,-500.0,0.0004115,120]
[423199599,1779919864000,-150.0,0.00041113,30]
[423199583,1779919864000,-1000.0,0.00041096,60]
[423199592,1779919864000,-150.0,0.00041096,60]
[423199621,1779919864000,-480.40394232,0.00041373,120]
[423199579,1779919864000,-1000.0,0.00041096,60]
[423199578,1779919864000,-1000.0,0.00041096,60]
[423199580,1779919864000,-1000.0,0.00041096,60]
[423199582,1779919864000,-1000.0,0.00041096,60]
[423199581,1779919864000,-1000.0,0.00041096,60]
[423199585,1779919864000,-1034.0,0.00041096,60]
[423199595,1779919864000,-153.52,0.00041104,120]
[423199587,1779919864000,-403.139978,0.00041096,20]
[423199590,1779919864000,-250.0,0.00041096,5]
[423199586,1779919864000,-403.139978,0.00041096,20]
[423199584,1779919864000,-1000.0,0.00041096,60]
[423199589,1779919864000,-403.139978,0.00041096,20]
[423199591,1779919864000,-175.33,0.00041096,120]
[423199594,1779919864000,-2299.9455462,0.000411,120]
[423199593,1779919864000,-175.34,0.00041096,60]
[423199588,1779919864000,-403.139978,0.00041096,20]
[423199618,1779919864000,-153.52,0.00041354,120]
[423199642,1779919864000,-1672.7364795,0.00041499,30]
[423199616,1779919864000,-169.999998,0.000413,3]
[423199636,1779919864000,-1619.16695213,0.00041387,120]
[423199643,1779919864000,-1148.61238259,0.00041499,30]
[423199638,1779919864000,-350.0,0.00041395,4]
[423199641,1779919864000,-153.52,0.00041454,120]
[423199639,1779919864000,-153.52,0.00041404,120]
[423199640,1779919864000,-161.92480393,0.00041422,7]
[423199648,1779919864000,-153.52,0.00041554,120]
[423199634,1779919864000,-309.34560215,0.00041374,7]
[423199651,1779919864000,-153.52,0.00041604,120]
[423199655,1779919864000,-1785.0,0.00041661,2]
[423199649,1779919864000,-1455.05041128,0.0004158,120]
[423199654,1779919864000,-153.52,0.00041654,120]
[423199652,1779919864000,-250.0,0.00041616,98]
[423199650,1779919864000,-151.0,0.000416,120]
[423199653,1779919864000,-7189.7,0.0004163,2]
[423199615,1779919864000,-250.0,0.00041267,91]
[423199656,1779919864000,-1455.2,0.00041694,120]
[423199645,1779919864000,-150.0,0.00041506,30]
[423199647,1779919864000,-330.0,0.00041513,91]
[423199644,1779919864000,-153.52,0.00041504,120]
[423199614,1779919864000,-153.52,0.00041254,120]
[423199637,1779919864000,-250.0,0.00041393,93]
[423199617,1779919864000,-153.52,0.00041304,120]
[423199619,1779919864000,-600.0,0.00041356,120]
[423199620,1779919864000,-198.54594748,0.00041371,7]
[423199613,1779919864000,-150.0,0.0004125,120]
[423199626,1779919864000,-165.0,0.00041374,120]
[423199627,1779919864000,-155.0,0.00041374,120]
[423199623,1779919864000,-168.0,0.00041374,120]